bitfinex/quotes_ETHUSD_20250622
["timestamp","ask_amount","ask_price","bid_price","bid_amount"]
[1750561545447,10.0,2274.1,2273.8,2.63868104]
[1750561545678,10.0,2274.1,2273.8,0.04397413]
[1750561545881,10.0,2274.0,2273.8,2.63869137]
[1750561546074,10.0,2274.0,2273.7,4.7578272]
[1750561546250,10.0,2274.0,2273.7,2.119]
[1750561546756,10.0,2274.0,2273.7,4.75777311]
[1750561546999,10.0,2274.0,2273.7,2.119]
[1750561547288,0.22985922,2273.9,2273.8,2.6387545]
[1750561547681,0.22985922,2273.9,2273.8,3.37842449]
[1750561549455,0.22985922,2273.9,2273.8,3.42239936]
[1750561549656,0.22985922,2273.9,2273.8,3.37842449]
[1750561550376,10.0,2274.2,2273.8,3.37835094]
[1750561550581,0.22983578,2274.0,2273.9,2.63858072]
[1750561551601,0.22983578,2274.0,2273.6,2.63895412]
[1750561551758,10.0,2273.8,2273.6,2.63895943]
[1750561552291,10.0,2273.8,2273.5,4.75808708]
[1750561552476,12.63882834,2273.8,2273.5,2.119]
[1750561552668,0.55,2273.7,2273.1,2.119]
[1750561552864,10.0,2273.3,2272.8,2.63990974]
[1750561553180,7.606,2273.2,2273.0,2.63968077]
[1750561553885,10.0,2273.1,2272.7,2.119]
[1750561554072,10.0,2273.1,2272.7,2.41399]
[1750561554274,10.0,2273.1,2272.7,4.75897577]
[1750561554473,10.0,2273.1,2272.8,2.63990485]
[1750561554651,10.0,2273.1,2272.3,15.221]
[1750561554851,10.0,2273.1,2272.4,2.12]
[1750561555077,0.55,2273.1,2272.9,2.63975128]
[1750561555392,7.599,2273.2,2273.1,2.63956711]
[1750561555600,10.0,2273.3,2273.2,2.63944403]
[1750561556310,0.8027,2273.9,2272.9,9.6837669]
[1750561556617,7.598,2273.8,2273.7,2.63887056]
[1750561556782,17.598,2273.8,2273.7,2.63887056]
[1750561556977,17.598,2273.8,2273.4,4.75910826]
[1750561557197,0.55,2273.7,2273.3,2.6393298]
[1750561557372,10.0,2273.6,2273.1,4.75951027]
[1750561557573,10.55,2273.4,2273.1,2.12]
[1750561557774,10.0,2273.2,2273.1,4.75955438]
[1750561557987,10.0,2273.2,2273.1,2.12]
[1750561558310,0.55,2273.1,2272.7,2.63994729]
[1750561558479,0.55,2273.1,2272.6,2.64014784]
[1750561558480,17.604,2273.0,2272.6,2.64008638]
[1750561559007,10.0,2272.8,2272.4,2.12]
[1750561559211,0.55,2272.9,2272.4,2.12]
[1750561559517,1.8149,2273.2,2272.9,2.63976531]
[1750561559698,0.8027,2273.3,2272.6,0.04399688]
[1750561559879,10.0,2273.1,2272.8,2.63989602]
[1750561560705,10.0,2273.1,2272.8,2.63984525]
[1750561561122,10.0,2273.1,2272.4,3.72740862]
[1750561561410,10.0,2273.1,2272.8,2.63986967]
[1750561561604,10.0,2273.1,2272.4,2.12]
[1750561561605,0.55,2273.0,2272.4,2.12]
[1750561561912,10.55,2272.6,2272.1,2.107]
[1750561562112,17.6,2272.5,2272.4,2.64038021]
[1750561562414,2.63870579,2273.9,2272.1,2.107]
[1750561562415,0.8007,2273.0,2272.1,4.79172134]
[1750561562581,0.8007,2273.7,2273.5,2.63903286]
[1750561562787,0.8007,2273.7,2273.6,2.63898662]
[1750561562984,7.611,2273.7,2273.3,0.04398449]
[1750561563310,7.611,2273.7,2273.5,2.6390443]
[1750561563509,0.55,2273.6,2273.1,2.107]
[1750561563719,0.8161,2273.5,2273.2,2.63938617]
[1750561563920,1.6168,2273.5,2273.1,4.74648524]
[1750561564105,1.6168,2273.5,2273.2,2.63939248]
[1750561564302,1.6168,2273.5,2273.1,4.74652595]
[1750561564503,0.55,2273.4,2273.1,4.74653608]
[1750561564706,7.615,2273.3,2273.1,2.107]
[1750561564894,7.615,2273.3,2273.1,4.746561]
[1750561565217,17.615,2273.3,2273.2,2.63945099]
[1750561566299,17.615,2273.3,2273.1,2.63951263]
[1750561566504,0.55,2273.2,2272.5,2.107]
[1750561566711,0.55,2273.2,2272.9,2.63978069]
[1750561566907,10.55,2273.2,2272.9,2.63978069]
[1750561567109,1.3741,2273.0,2272.5,2.107]
[1750561567326,10.0,2272.8,2272.6,2.64005304]
[1750561567486,10.0,2272.8,2272.5,4.74720628]
[1750561567686,10.0,2272.8,2272.7,2.64003168]
[1750561568223,17.612,2272.8,2272.7,2.64003168]
[1750561568742,19.45561,2272.8,2272.3,4.66]
[1750561568877,19.45561,2272.8,2272.4,2.64031549]
[1750561568878,0.55,2272.7,2272.4,2.64031549]
[1750561569088,0.55,2272.7,2272.0,2.107]
[1750561569394,0.55,2272.7,2272.5,2.64015813]
[1750561569916,19.45561,2272.8,2272.7,2.64003168]
[1750561570224,18.162,2272.8,2272.5,2.64019614]
[1750561570999,0.8322,2273.3,2272.5,2.107]
[1750561571204,10.0,2273.1,2272.9,2.63978195]
[1750561571432,0.8322,2273.3,2272.8,2.63990377]
[1750561571598,0.22992039,2273.4,2273.3,2.63933488]
[1750561572131,7.612,2273.7,2273.6,2.63898662]
[1750561572432,7.84189428,2273.7,2273.6,2.63898662]
[1750561572632,0.22989428,2273.7,2273.6,2.63898662]
[1750561572923,7.614,2273.9,2273.4,2.63916675]
[1750561573121,7.614,2273.9,2273.8,2.6387545]
[1750561573500,7.614,2273.9,2273.6,2.63897128]
[1750561573698,7.614,2273.9,2273.7,2.63877444]
[1750561574025,7.614,2273.9,2273.8,2.6387545]
[1750561574212,17.614,2273.9,2273.8,2.6387545]
[1750561574409,17.614,2273.9,2273.5,4.74609475]
[1750561574410,0.55,2273.9,2273.5,2.107]
[1750561574727,10.0,2273.8,2273.6,2.63898243]
[1750561575020,9.94538776,2273.9,2273.6,2.63898243]
[1750561575231,9.94538776,2273.9,2273.2,0.8072]
[1750561575232,0.55,2273.7,2273.2,0.8072]
[1750561575385,10.8322,2273.2,2272.6,2.64013948]
[1750561575581,10.0,2273.0,2272.5,2.107]
[1750561575824,0.55,2272.9,2272.5,2.107]
[1750561576025,7.604,2273.1,2272.7,2.63995406]
[1750561576026,10.0,2273.1,2272.7,2.63995406]
[1750561576224,10.0,2272.7,2272.5,2.107]
[1750561576520,17.61,2272.8,2272.5,2.107]
[1750561576838,2.5749808,2272.7,2272.1,4.74769374]
[1750561576988,2.5749808,2272.7,2272.2,2.64053069]
[1750561577189,0.55,2272.5,2272.0,2.107]
[1750561577499,17.607,2272.4,2272.1,2.6406538]
[1750561577685,17.607,2272.4,2272.0,4.74778639]
[1750561578520,0.55,2272.3,2271.9,2.64086889]
[1750561579248,0.55,2272.3,2271.7,2.15101434]
[1750561579546,0.55,2272.3,2271.9,2.64085419]
[1750561580341,0.55,2272.3,2271.8,2.64103378]
[1750561580695,3.19050374,2272.3,2271.8,2.64103378]
[1750561580902,5.75033759,2272.3,2271.8,2.64106281]
[1750561581114,10.0,2272.2,2271.0,0.43310536]
[1750561581317,0.55,2271.9,2271.5,2.64133238]
[1750561581516,3.33363385,2272.3,2272.0,2.64077314]
[1750561581820,10.0,2272.0,2271.9,2.64092062]
[1750561582130,10.0,2272.0,2271.8,2.6410686]
[1750561582386,10.0,2272.0,2271.9,2.6409613]
[1750561582513,17.6,2271.9,2271.8,2.64107095]
[1750561583611,10.0,2271.9,2271.8,2.64107095]
[1750561583832,17.6,2271.9,2271.8,2.64107095]
[1750561584026,10.0,2271.9,2271.8,2.64107095]
[1750561585407,10.0,2271.8,2271.4,2.64148557]
[1750561585610,7.601,2271.7,2271.4,2.64148557]
[1750561585810,10.0,2271.6,2271.3,2.64159634]
[1750561586020,10.0,2271.6,2271.2,2.108]
[1750561586021,0.55,2271.5,2271.2,4.74972465]
[1750561586238,0.55,2271.8,2271.5,2.64133712]
[1750561586440,10.55,2271.6,2271.2,2.108]
[1750561586839,10.55,2271.6,2271.2,4.74971486]
[1750561587037,10.55,2271.6,2271.3,2.64159925]
[1750561587260,10.55,2271.6,2271.2,2.108]
[1750561587424,10.55,2271.6,2271.3,2.64156431]
[1750561587759,12.49593,2271.6,2271.3,2.64156431]
[1750561588261,12.49593,2271.6,2271.2,4.74974607]
[1750561588558,0.8013,2271.4,2271.2,2.64174607]
[1750561588737,7.598,2271.3,2271.0,2.64196085]
[1750561588938,0.55,2271.2,2271.0,2.64196085]
[1750561589564,0.55,2271.2,2270.8,2.64219626]
[1750561589774,0.55,2271.4,2271.3,2.64165896]
[1750561589931,18.141,2271.4,2271.3,2.64165896]
[1750561590637,10.55,2271.4,2271.3,2.64165896]
[1750561590867,18.141,2271.4,2271.3,2.64165896]
[1750561591462,17.591,2271.4,2271.3,2.64165896]
[1750561591660,9.56770127,2271.4,2271.1,2.64183487]
[1750561591830,9.56770127,2271.4,2271.2,2.641745]
[1750561592231,0.55,2271.3,2270.7,5.55371267]
[1750561592468,0.55,2271.3,2270.3,10.57]
[1750561592469,13.19190352,2271.1,2270.6,2.642408]
[1750561592681,10.0,2270.9,2270.6,2.642408]
[1750561592864,0.55,2270.8,2270.5,2.64254357]
[1750561593161,10.0,2270.6,2270.5,2.64258973]
[1750561593366,0.55,2270.5,2270.4,2.1]
[1750561593552,0.55,2270.5,2270.1,2.64299759]
[1750561593738,10.0,2270.3,2269.9,2.64326976]
[1750561594264,0.55,2270.2,2269.9,2.64322206]
[1750561594433,10.55,2270.0,2269.4,2.64387062]
[1750561594632,10.55,2269.8,2269.6,2.64363457]
[1750561594886,0.8013,2270.1,2270.0,2.6431718]
[1750561595166,0.55,2269.9,2269.2,2.1]
[1750561595361,0.55,2269.9,2269.1,3.44756607]
[1750561595362,0.8013,2269.8,2269.4,2.64378517]
[1750561595666,10.0,2269.6,2269.4,2.64378174]
[1750561596281,10.0,2269.6,2269.2,2.1]
[1750561596282,0.55,2269.5,2269.2,2.1]
[1750561596562,7.615,2269.7,2269.6,2.64357241]
[1750561596563,0.55,2269.7,2269.6,2.64357241]
[1750561596769,7.612,2269.8,2269.7,2.64350503]
[1750561597327,17.612,2269.8,2269.7,2.64350503]
[1750561597959,10.0,2269.8,2269.7,2.64350503]
[1750561598659,10.0,2269.8,2269.6,2.64358409]
[1750561599074,17.606,2269.8,2269.7,2.64352117]
[1750561599377,17.605,2269.8,2269.7,2.64352117]
[1750561600449,10.0,2269.8,2269.7,2.64352117]
[1750561601387,1.51908632,2270.3,2269.6,2.64358409]
[1750561601592,0.8089,2270.7,2269.9,0.8134]
[1750561601795,0.8089,2270.7,2270.0,2.68719254]
[1750561601959,10.8089,2270.7,2270.6,2.64247335]
[1750561602504,0.8089,2271.3,2271.1,2.64180318]
[1750561602652,7.88956013,2271.2,2271.1,2.64189159]
[1750561603300,7.611,2271.2,2271.1,2.64189159]
[1750561603700,7.611,2271.2,2270.8,2.101]
[1750561604085,10.0,2271.1,2270.9,2.64212426]
[1750561604285,10.0,2271.1,2271.0,2.64200792]
[1750561605175,10.0,2271.1,2270.8,4.74312726]
[1750561605502,10.0,2271.1,2270.8,2.101]
[1750561605659,11.78411457,2271.1,2270.9,2.64206737]
[1750561606296,10.23014573,2271.3,2271.2,2.64177527]
[1750561606498,10.23014573,2271.3,2271.0,2.64197403]
[1750561606701,10.23014573,2271.3,2271.2,2.64177527]
[1750561607067,10.23014573,2271.3,2270.7,2.64226117]
[1750561607068,10.0,2271.1,2270.7,2.64235698]
[1750561607273,14.39434887,2271.1,2270.9,2.64212293]
[1750561607462,17.605,2271.0,2270.8,2.64221204]
[1750561607662,10.0,2270.9,2270.7,2.64235698]
[1750561607877,0.55,2270.8,2270.4,2.64263119]
[1750561608212,10.0,2270.6,2270.5,2.64258973]
[1750561608815,10.0,2270.6,2270.3,2.64272894]
[1750561608968,10.0,2270.6,2270.4,2.64269196]
[1750561609169,10.0,2270.6,2270.5,2.64258973]
[1750561609370,10.0,2270.6,2270.4,2.64267735]
[1750561609923,10.0,2270.6,2270.2,2.64290346]
[1750561610076,10.0,2270.6,2270.1,2.101]
[1750561610284,10.0,2270.6,2270.4,2.64261469]
[1750561611663,1.21749443,2271.5,2270.5,7.34663449]
[1750561611868,0.7717,2272.0,2271.2,2.64177527]
[1750561612070,7.603,2272.3,2272.1,2.64063737]
[1750561612300,7.603,2272.3,2271.2,2.91692237]
[1750561612301,4.0,2272.1,2272.0,2.64084507]
[1750561612483,0.23008279,2272.4,2272.3,2.64049641]
[1750561612911,7.605,2272.8,2272.3,0.04400787]
[1750561613116,10.0,2272.7,2272.6,2.64014784]
[1750561613617,40.0,2272.7,2271.7,10.579]
[1750561613824,10.0,2272.3,2271.6,4.74222438]
[1750561614111,0.55,2272.0,2271.8,2.64099892]
[1750561614318,10.0,2272.3,2271.9,2.64095991]
[1750561614482,9.42304446,2272.2,2271.8,2.64103267]
[1750561614815,10.0,2272.1,2271.8,2.64103267]
[1750561615111,10.0,2272.1,2271.2,2.101]
[1750561615112,10.0,2272.1,2271.9,2.64095335]
[1750561615278,10.0,2272.1,2272.0,2.64084507]
[1750561615279,10.55,2272.1,2272.0,2.64084507]
[1750561615609,8.153,2272.1,2272.0,2.64084507]
[1750561615918,10.55,2272.0,2271.7,2.64111819]
[1750561616340,10.55,2272.0,2271.2,2.101]
[1750561616341,10.55,2272.0,2271.2,4.74275859]
[1750561616493,10.0,2272.0,2271.9,2.6409613]
[1750561618106,8.53770445,2272.1,2272.0,2.64084507]
[1750561618311,17.596,2272.1,2272.0,2.64084507]
[1750561620750,10.0,2272.0,2271.6,2.64124761]
[1750561620900,10.0,2271.8,2271.5,2.1]
[1750561621097,10.0,2271.8,2271.4,2.64146746]
[1750561621098,10.0,2271.4,2270.9,2.64208553]
[1750561621411,0.55,2271.1,2270.8,2.1]
[1750561621609,10.0,2270.7,2270.4,2.1]
[1750561621816,10.0,2270.5,2270.0,15.31713159]
[1750561622054,0.55,2270.4,2269.8,2.6434047]
[1750561622355,10.0,2270.1,2269.7,2.104]
[1750561622517,8.91325965,2270.3,2269.7,4.74748941]
[1750561622518,7.597,2270.0,2269.7,4.74748941]
[1750561622717,17.597,2270.0,2269.7,4.74748253]
[1750561622913,10.0,2269.9,2269.7,4.74747062]
[1750561623097,7.597,2270.0,2269.8,2.6434039]
[1750561623297,10.0,2269.9,2269.8,2.64335842]
[1750561623628,11.7597,2269.9,2269.6,2.64363764]
[1750561623846,11.7597,2269.9,2269.7,2.64347434]
[1750561624662,10.0,2270.0,2269.9,2.64319721]
[1750561624863,10.0,2270.0,2269.6,2.64360672]
[1750561625065,8.144,2269.9,2269.6,2.64363631]
[1750561625363,7.594,2269.9,2269.6,2.64360641]
[1750561625564,7.594,2269.9,2269.4,4.7478314]
[1750561625565,7.594,2269.9,2269.8,2.6434047]
[1750561625716,7.594,2269.9,2269.7,2.64351561]
[1750561625918,7.594,2269.9,2269.8,2.6434047]
[1750561626244,0.55,2270.2,2269.5,0.04405709]
[1750561626446,10.55,2270.1,2270.0,2.64314969]
[1750561626649,10.0,2270.0,2269.4,2.104]
[1750561626958,9.33092596,2270.1,2269.5,2.64372039]
[1750561627157,1.73692596,2270.1,2270.0,2.6431718]
[1750561627339,10.0,2270.0,2269.9,2.64324452]
[1750561627543,10.0,2270.0,2269.9,2.64328825]
[1750561628117,0.7715,2271.0,2270.6,2.64240713]
[1750561628437,0.7715,2271.0,2269.9,2.95745242]
[1750561628438,0.23022757,2270.6,2269.9,5.55659974]
[1750561628641,7.595,2270.5,2270.4,2.64269276]
[1750561629037,0.23021044,2270.6,2270.5,2.64258973]
[1750561629270,7.595,2271.1,2270.5,0.04403778]
[1750561629555,10.0,2270.6,2270.2,2.105]
[1750561629752,7.597,2270.6,2270.2,2.105]
[1750561629976,17.597,2270.6,2270.5,2.64258973]
[1750561631034,10.0,2270.6,2270.5,2.64258973]
[1750561631239,10.0,2270.6,2270.4,2.64264859]
[1750561631447,10.0,2270.6,2270.5,2.64258973]
[1750561632189,10.0,2270.6,2270.2,2.105]
[1750561632478,10.0,2270.6,2270.5,2.64258973]
[1750561633063,0.23019122,2270.9,2270.8,2.64224062]
[1750561633260,0.23019122,2270.9,2270.6,4.66]
[1750561633261,10.23019122,2270.9,2270.6,4.66]
[1750561633534,12.27700354,2270.9,2270.6,4.66]
[1750561634049,12.27700354,2270.9,2270.6,7.30246054]
[1750561634251,12.27700354,2270.9,2270.8,2.64224062]
[1750561634442,12.27700354,2270.9,2270.7,2.64230239]
[1750561634643,12.27700354,2270.9,2270.6,4.66]
[1750561634842,1.98730035,2270.8,2270.6,4.66]
[1750561635045,1.98730035,2270.8,2270.6,7.3024505]
[1750561635242,1.98730035,2270.8,2270.7,2.64235698]
[1750561635679,1.98730035,2270.8,2270.6,4.66]
[1750561635973,17.595,2270.7,2270.6,4.66]
[1750561636270,17.595,2270.7,2270.6,7.30247335]
[1750561636880,17.595,2270.7,2270.6,4.66]
[1750561637052,20.12624916,2270.7,2270.6,4.66]
[1750561637746,10.12624916,2270.7,2270.4,2.64270613]
[1750561638144,0.23019122,2270.9,2270.8,2.64224062]
[1750561638361,0.23019122,2270.9,2270.8,5.57037159]
[1750561638567,0.23019122,2270.9,2270.8,2.105]
[1750561638778,0.78019122,2270.9,2270.8,4.74724062]
[1750561638989,0.23019122,2270.9,2270.8,4.74724062]
[1750561639294,10.0,2271.1,2270.9,2.64202814]
[1750561639489,10.0,2271.1,2270.9,2.64204074]
[1750561639693,10.0,2271.1,2271.0,2.64200792]
[1750561639895,0.23015436,2271.2,2271.1,2.64189159]
[1750561640097,10.23015436,2271.2,2271.1,2.64189159]
[1750561640301,0.7801,2271.8,2271.4,2.64147489]
[1750561640469,17.595,2271.6,2271.5,2.64142637]
[1750561640668,17.82511771,2271.6,2271.2,2.64173193]
[1750561640985,0.23011771,2271.6,2270.9,0.7791]
[1750561641170,0.23011771,2271.6,2271.5,2.64142637]
[1750561641374,0.23011771,2271.6,2271.5,5.56224888]
[1750561641591,10.0,2272.0,2271.9,2.64095709]
[1750561641788,10.0,2272.0,2271.4,2.64152199]
[1750561641789,30.0,2271.6,2271.1,0.7718]
[1750561641993,10.0,2271.7,2271.0,2.105]
[1750561641994,0.55,2271.4,2271.0,2.105]
[1750561642168,0.55,2271.4,2271.1,2.64186701]
[1750561642687,0.55,2271.4,2271.2,2.64177316]
[1750561642858,1.815,2271.3,2271.2,2.64177316]
[1750561643263,0.55,2271.6,2271.3,2.64161683]
[1750561643465,7.603,2271.5,2271.0,2.105]
[1750561643783,10.0,2271.4,2271.1,2.6418864]
[1750561645219,10.0,2271.4,2270.7,2.64224284]
[1750561645220,0.55,2271.1,2270.7,2.64224284]
[1750561645363,10.0,2270.9,2270.6,2.64239652]
[1750561645568,10.0,2270.9,2270.5,4.74653233]
[1750561646100,10.0,2270.9,2270.7,2.64235698]
[1750561646308,10.0,2270.9,2270.5,2.104]
[1750561646309,10.0,2270.9,2270.5,4.74653309]
[1750561646525,10.0,2270.9,2270.6,2.64244124]
[1750561646875,0.55,2270.8,2270.5,2.104]
[1750561647076,0.55,2270.8,2270.5,4.74656508]
[1750561647520,10.0,2270.6,2270.5,4.74656508]
[1750561648018,7.603,2270.7,2270.6,2.64247335]
[1750561648218,8.145,2271.1,2270.9,2.64204536]
[1750561648434,10.0,2271.0,2270.9,2.64204536]
[1750561649181,0.8302,2271.5,2271.2,2.64168476]
[1750561649527,7.595,2271.7,2271.3,0.04402947]
[1750561649732,7.595,2271.7,2271.6,2.64124616]
[1750561649898,7.82507794,2272.0,2271.7,2.64109628]
[1750561650096,10.0,2271.9,2271.7,2.64109628]
[1750561650283,10.0,2271.9,2271.6,2.6412511]
[1750561650478,0.55,2271.8,2271.5,2.104]
[1750561650683,10.0,2271.6,2271.5,4.74539614]
[1750561651181,10.55,2271.6,2271.5,2.104]
[1750561651392,12.62881184,2271.6,2271.0,7.5551]
[1750561651593,12.62881184,2271.6,2271.3,2.64157107]
[1750561652131,0.55,2271.5,2271.1,2.64181407]
[1750561652322,7.596,2271.4,2271.1,2.64181407]
[1750561652533,10.0,2271.3,2271.0,4.74596013]
[1750561652915,10.0,2271.3,2271.0,2.104]
[1750561653141,10.0,2271.3,2271.1,2.64184153]
[1750561653439,10.0,2271.3,2271.1,2.64184038]
[1750561654304,10.0,2271.3,2271.0,2.64198457]
[1750561654524,12.12741141,2271.3,2271.0,2.64198457]
[1750561654834,12.12741141,2271.3,2271.1,2.64183291]
[1750561655054,10.0,2271.3,2271.2,2.64177527]
[1750561655214,10.0,2271.4,2271.3,2.64154561]
[1750561655556,10.0,2271.4,2271.2,2.64171576]
[1750561655696,11.7594,2271.4,2271.1,2.64188655]
[1750561655897,0.55,2271.7,2271.3,2.64165896]
[1750561656096,10.0,2271.5,2271.3,2.64160213]
[1750561656396,10.0,2271.5,2271.3,2.64159395]
[1750561656910,10.0,2271.5,2271.4,2.64154266]
[1750561657118,10.23011847,2271.5,2271.4,2.64154266]
[1750561657324,0.23011847,2271.5,2271.4,2.64154266]
[1750561657639,17.594,2271.7,2271.6,2.64131008]
[1750561657833,10.0,2271.7,2271.6,2.64131008]
[1750561658034,7.82409107,2271.8,2271.7,2.64119381]
[1750561658336,17.82409107,2271.8,2271.7,2.64119381]
[1750561658831,17.82409107,2271.8,2271.4,2.1450221]
[1750561658832,10.0,2271.7,2271.4,6.761]
[1750561659033,7.82409107,2271.8,2271.7,2.64119381]
[1750561659237,10.0,2271.7,2271.5,2.64137007]
[1750561659738,10.0,2271.7,2271.6,2.64131008]
[1750561660232,10.0,2271.7,2271.4,4.66]
[1750561660534,10.0,2271.7,2271.5,2.64140353]
[1750561661038,10.0,2271.7,2271.6,2.64131008]
[1750561661232,0.23009107,2271.8,2271.6,2.64131008]
[1750561661446,0.23009107,2271.8,2271.7,2.64119381]
[1750561661653,7.82309107,2271.8,2271.7,2.64119381]
[1750561662015,10.0,2271.7,2271.6,2.64124769]
[1750561662619,10.0,2271.7,2271.5,2.64136679]
[1750561662921,10.0,2271.7,2271.4,7.30148973]
[1750561662922,11.78230911,2271.7,2271.4,7.30148973]
[1750561663461,0.55,2271.6,2271.1,4.66]
[1750561663662,10.55,2271.2,2270.7,0.8265]
[1750561663876,11.3388,2271.0,2270.4,3.46912888]
[1750561664167,7.593,2271.0,2270.9,2.64212426]
[1750561665104,0.55,2271.5,2271.2,2.64177527]
[1750561665274,30.0,2271.3,2270.9,2.64208377]
[1750561665474,10.0,2271.2,2270.9,2.64208377]
[1750561665665,17.593,2271.1,2271.0,2.64200792]
[1750561666124,10.0,2271.0,2270.9,2.64208177]
[1750561666328,7.593,2271.1,2271.0,2.64200792]
[1750561666730,0.55,2271.4,2271.0,2.64200792]
[1750561666930,10.0,2271.2,2270.8,4.7431768]
[1750561667429,10.0,2271.2,2270.9,2.64210585]
[1750561667629,10.0,2271.2,2270.9,2.64212426]
[1750561667969,10.0,2271.2,2271.1,2.64189159]
[1750561668184,10.0,2271.2,2270.8,2.1450322]
[1750561668331,11.7593,2271.2,2270.9,2.64205507]
[1750561669270,0.55,2271.5,2271.3,2.64159733]
[1750561669575,10.0,2271.3,2271.1,2.64184291]
[1750561669782,7.593,2271.4,2271.1,2.64184291]
[1750561670105,7.593,2271.4,2271.0,2.64194679]
[1750561670240,10.55,2271.3,2271.0,2.64195111]
[1750561670445,10.0,2271.1,2271.0,2.6419567]
[1750561670650,10.0,2271.1,2270.9,2.64206786]
[1750561671681,10.0,2271.1,2270.8,2.64218066]
[1750561672034,10.0,2271.1,2270.9,2.64212355]
[1750561672236,10.0,2271.1,2271.0,2.64200792]
[1750561674171,30.7986,2272.1,2271.5,2.64134883]
[1750561674380,30.0,2272.0,2271.6,2.64119891]
[1750561674536,10.0,2271.9,2271.6,2.64119891]
[1750561674737,0.23009985,2272.0,2271.8,2.64103244]
[1750561674933,7.593,2271.9,2271.8,2.64103244]
[1750561675184,7.593,2271.9,2271.7,2.6411862]
[1750561675185,7.593,2271.9,2271.7,2.64114285]
[1750561675348,0.23009985,2272.0,2271.9,2.6409613]
[1750561675672,7.82309985,2272.0,2271.9,2.6409613]
[1750561675858,17.82309985,2272.0,2271.9,2.6409613]
[1750561676185,7.593,2272.5,2271.9,3.16913355]
[1750561676427,30.0,2272.8,2271.9,3.16913355]
[1750561676428,0.23003821,2272.4,2272.0,0.7526]
[1750561676632,0.23003821,2272.4,2272.3,3.39309641]
[1750561676926,30.0,2273.5,2273.3,2.63926057]
[1750561677106,11.592,2273.4,2273.1,2.63955097]
[1750561677278,1.1592,2273.3,2273.2,2.63945099]
[1750561677613,7.592,2273.5,2273.4,2.63921879]
[1750561677911,17.592,2273.5,2273.4,2.63921879]
[1750561678213,30.0,2273.7,2273.5,2.6391027]
[1750561678385,7.591,2273.7,2273.2,0.0439863]
[1750561678591,10.0,2273.7,2273.1,0.7526]
[1750561678792,10.0,2273.5,2273.4,2.63913254]
[1750561679414,7.591,2273.8,2273.4,2.63913254]
[1750561679627,20.0993278,2274.7,2273.2,2.63945099]
[1750561679628,0.7724,2274.2,2273.2,2.63945099]
[1750561679778,30.0,2274.1,2273.8,2.6387441]
[1750561679979,7.591,2274.0,2273.8,2.6387441]
[1750561680180,0.7591,2273.9,2273.8,2.6387441]
[1750561680379,0.7591,2273.9,2273.6,2.63894779]
[1750561680380,10.7591,2273.9,2273.7,2.63879961]
[1750561680582,0.7591,2273.9,2273.8,2.6387545]
[1750561680783,0.7724,2274.2,2273.9,2.6386361]
[1750561681122,7.589,2274.1,2273.6,2.63898662]
[1750561681417,2.63795307,2274.5,2273.0,2.63966362]
[1750561681418,0.8289,2274.9,2273.9,2.63863846]
[1750561681621,0.8289,2274.9,2274.5,2.63792807]
[1750561681622,7.589,2274.8,2274.5,2.63792807]
[1750561681779,10.84179,2274.7,2274.6,2.63782643]
[1750561681978,0.84179,2274.7,2273.8,3.41033967]
[1750561682330,30.55,2274.1,2273.4,0.7716]
[1750561682526,0.55,2273.9,2273.5,2.63904752]
[1750561682815,40.0,2273.8,2273.4,2.63910517]
[1750561682978,11.90786474,2273.7,2273.4,2.63910517]
[1750561683178,7.589,2273.7,2273.1,2.8716]
[1750561683380,7.589,2273.7,2273.5,2.63902411]
[1750561684024,10.0,2273.6,2273.4,2.63918211]
[1750561684227,10.0,2273.6,2273.3,0.04398533]
[1750561684388,17.587,2273.7,2273.6,2.63898662]
[1750561684592,17.587,2273.7,2273.5,2.63904647]
[1750561684791,19.3457,2273.7,2273.5,2.63904647]
[1750561685022,10.0,2273.6,2273.4,2.63916324]
[1750561685221,0.55,2273.5,2273.3,2.63925388]
[1750561685427,10.0,2273.6,2273.4,2.63919284]
[1750561685632,10.0,2273.6,2273.3,2.6392893]
[1750561685943,10.0,2273.6,2272.8,2.099]
[1750561685944,2.71017,2273.6,2272.8,2.099]
[1750561686096,7.587,2273.5,2273.3,2.63924916]
[1750561686297,7.587,2273.8,2273.2,0.04398805]
[1750561686525,10.0,2273.7,2273.6,2.63892783]
[1750561686898,10.0,2273.7,2273.4,2.6391621]
[1750561687233,10.0,2273.7,2273.6,2.63898662]
[1750561687430,0.7756,2274.9,2274.8,2.63759451]
[1750561687593,2.63803272,2274.5,2273.9,0.82446808]
[1750561687794,10.0,2273.9,2273.3,0.7805]
[1750561688006,7.608,2273.8,2273.5,2.63900334]
[1750561688535,17.611,2273.8,2273.4,2.63921879]
[1750561688711,17.611,2273.8,2273.5,2.63902734]
[1750561688892,17.611,2273.8,2273.7,2.63887056]
[1750561689601,17.611,2273.8,2273.5,2.63909314]
[1750561690022,17.611,2273.8,2273.6,2.63887346]
[1750561690332,0.55,2274.0,2273.9,2.63863846]
[1750561690535,17.605,2274.0,2273.9,2.63863846]
[1750561691234,30.0,2274.6,2274.0,0.7805]
[1750561691398,7.8349021,2275.0,2274.1,2.14196755]
[1750561691607,0.86105021,2274.9,2274.2,2.63829038]
[1750561691906,10.86105021,2274.9,2274.7,2.63765242]
[1750561692107,0.86105021,2274.9,2274.8,2.63759451]
[1750561692336,0.86105021,2274.9,2274.5,0.7794]
[1750561692337,0.86105021,2274.9,2274.7,2.63767258]
[1750561692651,7.8349021,2275.0,2274.5,0.7794]
[1750561692940,7.8349021,2275.0,2274.6,2.63782146]